fUST/lending_fUST_20250521
["ID","MTS","AMOUNT","RATE_DAILY","PERIOD"]
[361797654,1747809054372,-254.76770521,0.00021973,2]
[361797658,1747809907321,3948.30354614,0.0002,120]
[361797661,1747810031110,-327.91658899,0.00013426,2]
[361797664,1747810155111,-4672.08341101,0.00013426,2]
[361797665,1747810155136,-195.72664885,0.00013699,2]
[361797691,1747810232325,-5000.0,0.00013562,2]
[361797692,1747810232339,-136.37613315,0.00013699,2]
[361797693,1747810232351,-165.0993115,0.0001532,2]
[361797694,1747810232364,-182.5921714,0.00015753,2]
[361797695,1747810232376,-300.0,0.00016437,2]
[361797696,1747810232389,-300.0,0.00016437,2]
[361797697,1747810232401,-300.0,0.00016437,2]
[361797698,1747810232411,-430.0,0.00016438,2]
[361797699,1747810232422,-430.0,0.00016438,2]
[361797700,1747810232432,-430.0,0.00016438,2]
[361797701,1747810232443,-430.0,0.00016438,2]
[361797702,1747810232456,-430.0,0.00016438,2]
[361797703,1747810232467,-430.0,0.00016438,2]
[361797704,1747810232479,-430.0,0.00016438,2]
[361797705,1747810232491,-430.0,0.00016438,2]
[361797706,1747810232504,-407.05803458,0.00016438,2]
[361797707,1747810232516,-430.0,0.00016438,2]
[361797708,1747810232529,-430.0,0.00016438,2]
[361797709,1747810232543,-430.0,0.00016438,2]
[361797710,1747810232556,-497.54663862,0.00016438,2]
[361797711,1747810232567,-430.0,0.00016438,2]
[361797713,1747810232581,-430.0,0.00016438,2]
[361797714,1747810232595,-430.0,0.00016438,2]
[361797716,1747810232608,-176.09044824,0.00016438,2]
[361797750,1747810238108,-300.0,0.00016436,2]
[361797752,1747810238123,-193.95674534,0.00016438,2]
[361797754,1747810238135,-430.0,0.00016438,2]
[361797756,1747810238146,-167.13163836,0.00016438,2]
[361797759,1747810238158,-430.0,0.00016438,2]
[361797761,1747810238168,-436.82744993,0.00016438,2]
[361797763,1747810238180,-8841.58972831,0.00016461,2]
[361797816,1747810245134,-14047.89547687,0.00016461,2]
[361797817,1747810245173,-596.3249975,0.00016461,2]
[361797857,1747810246250,-1301.39999999,0.00016461,2]
[361797905,1747811193886,-158.68101468,0.00013292,2]
[361797906,1747811197889,-180.14997117,0.00013292,2]
[361797907,1747811200571,-165.53770473,0.00013292,2]
[361797908,1747811202694,-173.94630546,0.00013292,2]
[361797909,1747811206513,-323.76223847,0.00013292,2]
[361797910,1747811209282,-152.00111029,0.00013292,2]
[361797911,1747811349155,-3845.9216552,0.00013292,2]
[361797912,1747811349183,-3.35393008,0.00013699,2]
[361797963,1747811438301,-3422.65000315,0.00013562,2]
[361797979,1747811440585,-1577.34999685,0.00013562,2]
[361797980,1747811440595,-315.329945,0.00013699,2]
[361797981,1747811440605,-512.66100353,0.00016305,2]
[361797982,1747811440615,-300.0,0.00016437,2]
[361797983,1747811440625,-111.15229945,0.00016437,2]
[361797984,1747811440637,-188.84770055,0.00016437,2]
[361797985,1747811440648,-142.15229945,0.00016438,2]
[361797986,1747811440660,-287.84770055,0.00016438,2]
[361797987,1747811440670,-92.36354365,0.00016438,2]
[361797988,1747811440682,-337.63645635,0.00016438,2]
[361797989,1747811440691,-430.0,0.00016438,2]
[361797990,1747811440700,-246.34714365,0.00016438,2]
[361798001,1747811445644,-155.87006356,0.00016438,2]
[361798002,1747811445655,-430.0,0.00016438,2]
[361798003,1747811445665,-430.0,0.00016438,2]
[361798004,1747811445675,-430.0,0.00016438,2]
[361798005,1747811445686,-430.0,0.00016438,2]
[361798006,1747811445696,-430.0,0.00016438,2]
[361798007,1747811445705,-430.0,0.00016438,2]
[361798008,1747811445715,-218.92144963,0.00016438,2]
[361798009,1747811445727,-211.07855037,0.00016438,2]
[361798010,1747811445737,-339.65918154,0.00016438,2]
[361798011,1747811445749,-90.34081846,0.00016438,2]
[361798012,1747811445759,-430.0,0.00016438,2]
[361798013,1747811445769,-430.0,0.00016438,2]
[361798014,1747811445780,-134.75198461,0.00016438,2]
[361798023,1747811446839,-102.4011377,0.00016438,2]
[361798024,1747811446849,-430.0,0.00016438,2]
[361798025,1747811446858,-430.0,0.00016438,2]
[361798026,1747811446868,-430.0,0.00016438,2]
[361798027,1747811446877,-430.0,0.00016438,2]
[361798028,1747811446888,-430.0,0.00016438,2]
[361798029,1747811446897,-430.0,0.00016438,2]
[361798030,1747811446907,-430.0,0.00016438,2]
[361798031,1747811446917,-430.0,0.00016438,2]
[361798032,1747811446927,-430.0,0.00016438,2]
[361798034,1747811446937,-430.0,0.00016438,2]
[361798035,1747811446946,-430.0,0.00016438,2]
[361798037,1747811446956,-430.0,0.00016438,2]
[361798039,1747811446966,-430.0,0.00016438,2]
[361798040,1747811446975,-440.50843648,0.00016438,2]
[361798042,1747811446985,-5533.94793303,0.00016461,7]
[361798044,1747811446995,-195.58188356,0.00016461,2]
[361798047,1747811447005,-430.0,0.00016712,2]
[361798048,1747811447014,-202.89631726,0.00016712,2]
[361798050,1747811447024,-430.0,0.00016712,2]
[361798052,1747811447033,-430.0,0.00016712,2]
[361798054,1747811447043,-430.0,0.00016712,2]
[361798056,1747811447053,-430.0,0.00016712,2]
[361798058,1747811447063,-1222.25209701,0.000169,2]
[361798060,1747811447072,-185.4326167,0.00016983,2]
[361798062,1747811447081,-430.0,0.00016986,2]
[361798064,1747811447091,-430.0,0.00016986,2]
[361798066,1747811447100,-548.1,0.00016986,2]
[361798068,1747811447111,-430.0,0.00016986,2]
[361798070,1747811447120,-586.56225722,0.00017082,2]
[361798072,1747811447130,-500.0,0.00017082,2]
[361798074,1747811447139,-500.0,0.00017082,2]
[361798076,1747811447149,-328.3544499,0.00017082,2]
[361798078,1747811447158,-517.04435967,0.00017083,2]
[361798080,1747811447168,-500.0,0.00017083,2]
[361798082,1747811447177,-500.0,0.00017083,2]
[361798084,1747811447187,-500.0,0.00017083,2]
[361798086,1747811447199,-501.39751028,0.00017171,2]
[361798088,1747811447208,-500.0,0.00017189,2]
[361798090,1747811447217,-500.0,0.00017189,2]
[361798092,1747811447227,-500.0,0.00017189,2]
[361798094,1747811447237,-1222.25209701,0.0001721,2]
[361798097,1747811447247,-430.0,0.0001726,2]
[361798100,1747811447257,-367.2308373,0.0001726,2]
[361798102,1747811447267,-430.0,0.0001726,2]
[361798105,1747811447276,-500.0,0.00017475,2]
[361798108,1747811447286,-506.13481499,0.00017475,2]
[361798110,1747811447295,-500.0,0.000175,2]
[361798113,1747811447304,-508.76370083,0.000175,2]
[361798116,1747811447314,-507.61274596,0.000175,2]
[361798118,1747811447323,-511.94041997,0.000175,2]
[361798121,1747811447332,-1222.25209701,0.00017521,2]
[361798124,1747811447342,-430.0,0.00017534,2]
[361798126,1747811447352,-201.48126232,0.00017534,2]
[361798129,1747811447362,-500.0,0.00017617,2]
[361798132,1747811447372,-500.0,0.00017617,2]
[361798134,1747811447381,-6589.65943982,0.00017631,3]
[361798136,1747811447391,-1000.0,0.00017631,2]
[361798138,1747811447400,-1010.19438789,0.00017631,2]
[361798140,1747811447410,-592.80565917,0.00017631,2]
[361798142,1747811447419,-559.41524438,0.000177,2]
[361798145,1747811447429,-30055.48125336,0.00017718,2]
[361798146,1747811447439,-1000.0,0.00017737,2]
[361798147,1747811447449,-500.70190827,0.00017737,2]
[361798148,1747811447461,-502.95954698,0.00017737,2]
[361798150,1747811447471,-430.0,0.00017808,2]
[361798152,1747811447482,-1222.25209701,0.00017831,2]
[361798155,1747811447493,-420.0,0.00017963,2]
[361798157,1747811447505,-365.47,0.00018,2]
[361798159,1747811447517,-1037.82687275,0.00018023,2]
[361798160,1747811447527,-1000.0,0.00018048,2]
[361798161,1747811447538,-168.54190298,0.0001807,2]
[361798162,1747811447548,-430.0,0.00018082,2]
[361798163,1747811447558,-1222.25209701,0.00018141,2]
[361798164,1747811447567,-365.47,0.00018163,2]
[361798165,1747811447577,-365.47,0.00018163,2]
[361798166,1747811447586,-1011.31970336,0.00018165,2]
[361798167,1747811447595,-1009.22593966,0.00018165,2]
[361798168,1747811447606,-894.64583333,0.00018171,2]
[361798169,1747811447615,-160.0,0.00018171,2]
[361798170,1747811447625,-12643.00196899,0.00018171,2]
[361798171,1747811447634,-422.71322487,0.00018171,2]
[361798172,1747811447644,-160.0,0.00018171,2]
[361798173,1747811447654,-160.0,0.00018171,2]
[361798174,1747811447664,-160.0,0.00018171,2]
[361798175,1747811447673,-185.4326167,0.00018198,2]
[361798176,1747811447683,-179.0603141,0.00018356,2]
[361798177,1747811447694,-1222.25209701,0.00018452,2]
[361798178,1747811447704,-1222.25209701,0.00018762,2]
[361798179,1747811447715,-563.8701864,0.000189,2]
[361798180,1747811447724,-151.85454822,0.0001899,2]
[361798181,1747811447733,-207.4,0.0001899,2]
[361798182,1747811447743,-604.10045258,0.00019053,2]
[361798183,1747811447753,-559.33016678,0.00019071,2]
[361798184,1747811447763,-500.0,0.00019071,2]
[361798185,1747811447773,-414.32820024,0.00019071,2]
[361798186,1747811447782,-1222.25209701,0.00019072,2]
[361798187,1747811447791,-191.894757,0.00019178,2]
[361798188,1747811447801,-1222.25209701,0.00019383,2]
[361798189,1747811447811,-185.4326167,0.00019413,2]
[361798190,1747811447821,-587.0,0.00019631,2]
[361798191,1747811447831,-1222.25209701,0.00019693,2]
[361798192,1747811447840,-404.0,0.00019782,2]
[361798193,1747811447850,-1023.0,0.0002,2]
[361798194,1747811447859,-1023.0,0.0002,2]
[361798195,1747811447869,-1023.0,0.0002,2]
[361798196,1747811447878,-1023.0,0.0002,2]
[361798197,1747811447888,-1023.0,0.0002,2]
[361798198,1747811447897,-1023.0,0.0002,2]
[361798199,1747811447906,-1023.0,0.0002,2]
[361798200,1747811447916,-1023.0,0.0002,2]
[361798201,1747811447925,-1023.0,0.0002,2]
[361798202,1747811447935,-1023.0,0.0002,2]
[361798203,1747811447945,-157.86,0.0002,2]
[361798205,1747811447955,-1222.25209701,0.00020003,2]
[361798206,1747811447964,-315.329945,0.00020187,2]
[361798208,1747811447974,-636.0,0.000202,2]
[361798210,1747811447983,-1222.25209701,0.00020314,3]
[361798212,1747811447993,-374.976,0.00020314,2]
[361798214,1747811448003,-207.4,0.00020359,2]
[361798216,1747811448013,-150.097,0.00020473,2]
[361798218,1747811448022,-549.437,0.00020473,2]
[361798220,1747811448032,-1222.25209701,0.00020624,3]
[361798221,1747811448042,-185.4326167,0.00020628,2]
[361798224,1747811448052,-1222.25209701,0.00020934,4]
[361798226,1747811448062,-156.666769,0.00021041,2]
[361798227,1747811448072,-800.0,0.00021179,2]
[361798230,1747811448083,-1222.25209701,0.00021245,4]
[361798232,1747811448095,-823.0,0.00021454,2]
[361798233,1747811448106,-658.900988,0.00021533,2]
[361798235,1747811448117,-151.0,0.00021555,2]
[361798237,1747811448127,-1222.25209701,0.00021555,5]
[361798238,1747811448137,-159.05485592,0.00021644,2]
[361798239,1747811448148,-502.81719333,0.00021672,2]
[361798240,1747811448159,-159.05485592,0.00021753,2]
[361798241,1747811448168,-1222.25209701,0.00021866,6]
[361798242,1747811448178,-159.05485592,0.0002189,2]
[361798243,1747811448190,-151.0,0.000219,2]
[361798244,1747811448205,-244.940954,0.000219,2]
[361798245,1747811448215,-151.0,0.000219,2]
[361798246,1747811448224,-200.0,0.00021917,2]
[361798247,1747811448235,-1377.22,0.00021917,2]
[361798248,1747811448246,-151.0,0.00021918,7]
[361798249,1747811448255,-151.0,0.00021918,7]
[361798250,1747811448265,-151.0,0.00021918,7]
[361798251,1747811448275,-151.0,0.00021918,7]
[361798252,1747811448285,-151.0,0.00021918,7]
[361798253,1747811448294,-151.0,0.00021918,2]
[361798254,1747811448304,-151.0,0.00021918,7]
[361798255,1747811448314,-151.0,0.00021918,7]
[361798256,1747811448324,-151.0,0.00021918,7]
[361798257,1747811448333,-173.860418,0.00021918,7]
[361798258,1747811448343,-151.0,0.00021918,7]
[361798259,1747811448353,-151.0,0.00021918,7]
[361798260,1747811448363,-500.0,0.00021918,2]
[361798261,1747811448373,-500.0,0.00021918,2]
[361798262,1747811448383,-500.0,0.00021918,2]
[361798263,1747811448393,-500.0,0.00021918,2]
[361798264,1747811448402,-500.0,0.00021918,2]
[361798265,1747811448412,-500.0,0.00021918,2]
[361798266,1747811448422,-500.0,0.00021918,2]
[361798267,1747811448432,-500.0,0.00021918,2]
[361798268,1747811448442,-500.0,0.00021918,2]
[361798269,1747811448452,-500.0,0.00021918,2]
[361798270,1747811448463,-500.0,0.00021918,2]
[361798271,1747811448473,-500.0,0.00021918,2]
[361798272,1747811448482,-500.0,0.00021918,2]
[361798273,1747811448492,-500.0,0.00021918,2]
[361798274,1747811448502,-570.27149006,0.00021918,2]
[361798275,1747811448512,-127686.04841185,0.00021973,2]
[361798276,1747811448522,-151.0,0.00021973,7]
[361798277,1747811448532,-151.0,0.00021973,7]
[361798278,1747811448541,-151.0,0.00021973,7]
[361798279,1747811448551,-169.06883,0.00021973,7]
[361798280,1747811448561,-151.0,0.00021973,7]
[361798281,1747811448571,-151.0,0.00021973,7]
[361798282,1747811448581,-151.0,0.00021973,7]
[361798283,1747811448591,-151.0,0.00021973,7]
[361798284,1747811448600,-151.0,0.00021973,7]
[361798285,1747811448610,-151.0,0.00021973,7]
[361798286,1747811448620,-151.0,0.00021973,7]
[361798287,1747811448631,-151.0,0.00021973,7]
[361798288,1747811448641,-151.0,0.00021973,7]
[361798289,1747811448651,-151.0,0.00021973,7]
[361798290,1747811448662,-151.0,0.00021973,7]
[361798291,1747811448672,-192.658353,0.00021973,7]
[361798292,1747811448682,-151.0,0.00021973,7]
[361798293,1747811448692,-151.0,0.00021973,2]
[361798294,1747811448702,-151.0,0.00021973,7]
[361798295,1747811448711,-151.0,0.00021973,7]
[361798296,1747811448722,-151.0,0.00021973,7]
[361798297,1747811448732,-151.0,0.00021973,7]
[361798298,1747811448742,-151.0,0.00021973,7]
[361798299,1747811448753,-160.0,0.00021973,7]
[361798300,1747811448763,-151.0,0.00021973,7]
[361798301,1747811448773,-151.0,0.00021973,7]
[361798302,1747811448783,-151.0,0.00021973,7]
[361798303,1747811448792,-151.0,0.00021973,7]
[361798304,1747811448803,-151.342855,0.00021973,7]
[361798305,1747811448813,-894.64583333,0.00021973,7]
[361798306,1747811448823,-151.0,0.00021973,7]
[361798307,1747811448832,-158.323773,0.00021973,7]
[361798308,1747811448842,-2496.974603,0.00022,7]
[361798309,1747811448852,-2000.0,0.00022,2]
[361798310,1747811448862,-12643.00196899,0.00022,7]
[361798311,1747811448872,-9550.0,0.00022,2]
[361798312,1747811448882,-500.0,0.00022,120]
[361798313,1747811448892,-500.0,0.00022,120]
[361798314,1747811448900,-500.0,0.00022,120]
[361798315,1747811448909,-500.0,0.00022,120]
[361798316,1747811448916,-500.0,0.00022,120]
[361798317,1747811448924,-500.0,0.00022,120]
[361798318,1747811448932,-500.0,0.00022,120]
[361798319,1747811448939,-500.0,0.00022,120]
[361798320,1747811448947,-500.0,0.00022,120]
[361798321,1747811448955,-500.0,0.00022,120]
[361798322,1747811448965,-500.0,0.00022,120]
[361798323,1747811448975,-500.0,0.00022,120]
[361798324,1747811448983,-500.0,0.00022,120]
[361798325,1747811448992,-500.0,0.00022,120]
[361798326,1747811449002,-500.0,0.00022,120]
[361798327,1747811449011,-500.0,0.00022,120]
[361798328,1747811449020,-500.0,0.00022,120]
[361798329,1747811449030,-500.0,0.00022,120]
[361798330,1747811449040,-500.0,0.00022,120]
[361798331,1747811449049,-500.0,0.00022,120]
[361798332,1747811449058,-500.0,0.00022,120]
[361798333,1747811449068,-500.0,0.00022,120]
[361798334,1747811449077,-500.0,0.00022,120]
[361798335,1747811449087,-500.0,0.00022,120]
[361798336,1747811449096,-500.0,0.00022,120]
[361798337,1747811449106,-500.0,0.00022,120]
[361798338,1747811449116,-500.0,0.00022,120]
[361798339,1747811449126,-500.0,0.00022,120]
[361798340,1747811449136,-500.0,0.00022,120]
[361798341,1747811449146,-500.0,0.00022,120]
[361798342,1747811449156,-500.0,0.00022,120]
[361798343,1747811449165,-500.0,0.00022,120]
[361798344,1747811449308,-500.0,0.00022,120]
[361798345,1747811449319,-500.0,0.00022,120]
[361798346,1747811449329,-500.0,0.00022,120]
[361798347,1747811449339,-500.0,0.00022,120]
[361798348,1747811449349,-500.0,0.00022,120]
[361798349,1747811449358,-500.0,0.00022,120]
[361798350,1747811449368,-500.0,0.00022,120]
[361798351,1747811449377,-500.0,0.00022,120]
[361798352,1747811449387,-500.0,0.00022,120]
[361798353,1747811449396,-500.0,0.00022,120]
[361798354,1747811449406,-151.0,0.00022,7]
[361798355,1747811449415,-500.0,0.00022,120]
[361798356,1747811449425,-500.0,0.00022,120]
[361798357,1747811449434,-500.0,0.00022,120]
[361798358,1747811449444,-500.0,0.00022,120]
[361798359,1747811449453,-500.0,0.00022,120]
[361798360,1747811449463,-500.0,0.00022,120]
[361798361,1747811449473,-500.0,0.00022,120]
[361798362,1747811449482,-500.0,0.00022,120]
[361798363,1747811449492,-500.0,0.00022,120]
[361798364,1747811449502,-500.0,0.00022,120]
[361798365,1747811449512,-500.0,0.00022,120]
[361798366,1747811449522,-500.0,0.00022,120]
[361798367,1747811449532,-500.0,0.00022,120]
[361798368,1747811449542,-500.0,0.00022,120]
[361798369,1747811449552,-500.0,0.00022,120]
[361798370,1747811449561,-500.0,0.00022,120]
[361798371,1747811449571,-500.0,0.00022,120]
[361798372,1747811449580,-500.0,0.00022,120]
[361798373,1747811449590,-500.0,0.00022,120]
[361798374,1747811449601,-586.76,0.00022,120]
[361798375,1747811449611,-279.901784,0.00022,7]
[361798376,1747811449620,-500.0,0.00022,120]
[361798377,1747811449630,-500.0,0.00022,120]
[361798378,1747811449640,-500.0,0.00022,120]
[361798379,1747811449650,-151.0,0.00022,7]
[361798380,1747811449659,-151.0,0.00022,7]
[361798381,1747811449669,-151.0,0.00022,7]
[361798382,1747811449679,-152.396393,0.00022,7]
[361798383,1747811449689,-151.0,0.00022,7]
[361798384,1747811449698,-151.0,0.00022,7]
[361798385,1747811449708,-151.0,0.00022,7]
[361798386,1747811449718,-151.0,0.00022,7]
[361798387,1747811449727,-151.0,0.00022,7]
[361798388,1747811449737,-234.025798,0.00022,7]
[361798389,1747811449746,-151.0,0.00022,7]
[361798390,1747811449757,-151.0,0.00022,7]
[361798391,1747811449768,-151.0,0.00022,7]
[361798392,1747811449778,-151.0,0.00022,7]
[361798393,1747811449789,-243.174964,0.00022,7]
[361798394,1747811449798,-151.0,0.00022,7]
[361798395,1747811449808,-151.0,0.00022,7]
[361798396,1747811449818,-151.0,0.00022,7]
[361798397,1747811449828,-151.0,0.00022,7]
[361798398,1747811449838,-151.0,0.00022,7]
[361798399,1747811449848,-151.0,0.00022,7]
[361798400,1747811449859,-151.0,0.00022,7]
[361798401,1747811449870,-151.0,0.00022,7]
[361798402,1747811449879,-151.0,0.00022,7]
[361798403,1747811449889,-151.0,0.00022,7]
[361798404,1747811449899,-151.0,0.00022,7]
[361798405,1747811449909,-151.0,0.00022,7]
[361798406,1747811449918,-151.0,0.00022,7]
[361798407,1747811449928,-151.0,0.00022,7]
[361798408,1747811449937,-151.0,0.00022,7]
[361798409,1747811449947,-151.0,0.00022,7]
[361798410,1747811449957,-151.0,0.00022,7]
[361798411,1747811449966,-230.68258,0.00022,7]
[361798412,1747811449976,-151.766091,0.00022,7]
[361798413,1747811449985,-151.0,0.00022,7]
[361798414,1747811449995,-151.0,0.00022,7]
[361798415,1747811450006,-151.0,0.00022,7]
[361798416,1747811450016,-151.0,0.00022,7]
[361798417,1747811450025,-151.0,0.00022,7]
[361798418,1747811450035,-151.0,0.00022,7]
[361798419,1747811450045,-218.0,0.00022,2]
[361798420,1747811450054,-159.05485592,0.00022027,2]
[361798421,1747811450064,-2558.74,0.000221,2]
[361798422,1747811450074,-151.0,0.000221,7]
[361798423,1747811450084,-151.0,0.000221,7]
[361798424,1747811450093,-159.05485592,0.00022137,2]
[361798425,1747811450102,-1222.25209701,0.00022176,6]
[361798426,1747811450112,-182.959523,0.00022176,7]
[361798427,1747811450121,-200.0,0.00022191,30]
[361798428,1747811450131,-218.0,0.00022192,7]
[361798429,1747811450141,-156.666769,0.00022272,8]
[361798430,1747811450150,-159.05485592,0.00022274,2]
[361798431,1747811450160,-800.0,0.00022275,2]
[361798432,1747811450170,-600.0,0.00022322,2]
[361798433,1747811450179,-500.0,0.000224,8]
[361798434,1747811450192,-159.05485592,0.00022411,2]
[361798435,1747811450202,-500.25747806,0.00022412,2]
[361798436,1747811450212,-200.0,0.00022465,30]
[361798437,1747811450221,-500.0,0.0002248,8]
[361798438,1747811450231,-1222.25209701,0.00022486,7]
[361798439,1747811450241,-24076.51947655,0.000225,3]
[361798440,1747811450251,-154.921495,0.000225,7]
[361798441,1747811450260,-151.0,0.000225,7]
[361798442,1747811450271,-151.0,0.000225,7]
[361798443,1747811450281,-151.0,0.000225,7]
[361798444,1747811450291,-151.0,0.000225,7]
[361798445,1747811450300,-151.0,0.000225,7]
[361798446,1747811450310,-151.0,0.000225,7]
[361798447,1747811450319,-160.0,0.000225,3]
[361798448,1747811450329,-151.0,0.000225,7]
[361798449,1747811450338,-151.0,0.000225,7]
[361798450,1747811450348,-151.0,0.000225,7]
[361798451,1747811450358,-894.64583333,0.000225,3]
[361798452,1747811450369,-151.0,0.000225,7]
[361798453,1747811450378,-159.05485592,0.00022521,2]
[361798454,1747811450388,-489.53,0.00022565,15]
[361798455,1747811450398,-160.0,0.00022599,2]
[361798456,1747811450407,-52583.94841198,0.000226,7]
[361798457,1747811450511,-3211.88646088,0.000226,7]
[361798458,1747811488257,3032.91,0.00013,2]
[361798734,1747812632983,-5000.0,0.00013562,2]
[361798735,1747812632994,-318.12783,0.00013699,2]
[361798736,1747812633006,-300.0,0.00016436,2]
[361798737,1747812633016,-300.0,0.00016436,2]
[361798738,1747812633026,-5000.0,0.00016437,2]
[361798739,1747812633036,-206.24521007,0.00016437,2]
[361798740,1747812633052,-500.0,0.00016437,2]
[361798741,1747812633063,-500.0,0.00016437,2]
[361798742,1747812633074,-500.0,0.00016437,2]
[361798743,1747812633085,-203.15049443,0.00016437,2]
[361798744,1747812633096,-461.95398273,0.00016437,2]
[361798745,1747812633107,-500.0,0.00016437,2]
[361798746,1747812633117,-500.0,0.00016437,2]
[361798747,1747812633127,-500.0,0.00016437,2]
[361798748,1747812633138,-500.0,0.00016437,2]
[361798749,1747812633149,-500.0,0.00016437,2]
[361798750,1747812633160,-440.06832342,0.00016438,2]
[361798751,1747812633170,-434.96988457,0.00016438,2]
[361798752,1747812633180,-434.3897666,0.00016438,2]
[361798753,1747812633191,-445.7419247,0.00016438,2]
[361798754,1747812633202,-43.81191891,0.00016438,2]
[361798755,1747812633216,-386.18808109,0.00016438,2]
[361798756,1747812633226,-430.0,0.00016438,2]
[361798757,1747812633236,-567.6710772,0.00016438,2]
[361798758,1747812633248,-438.93474377,0.00016438,2]
[361798759,1747812633262,-404.80428803,0.00016438,2]
[361798760,1747812633273,-336.62409257,0.00016438,2]
[361798761,1747812633284,-430.0,0.00016438,2]
[361798762,1747812633295,-272.80785142,0.00016438,2]
[361798763,1747812633306,-430.0,0.00016438,2]
[361798764,1747812633316,-442.22616126,0.00016438,2]
[361798806,1747812644924,-841.69906409,0.00016274,2]
[361798808,1747812645073,-2140.0,0.00016274,2]
[361798854,1747812646749,-2018.30093591,0.00016274,2]
[361798855,1747812646760,-13.34221514,0.00016438,2]
[361798856,1747812646778,-430.0,0.00016438,2]
[361798857,1747812646790,-439.20566831,0.00016438,2]
[361798858,1747812646800,-430.0,0.00016438,2]
[361798859,1747812646812,-333.6079753,0.00016438,2]
[361798860,1747812646822,-430.0,0.00016438,2]
[361798861,1747812646832,-377.41190303,0.00016438,2]
[361798879,1747813832738,-1067.0,0.00013562,2]
[361798908,1747813838801,-3933.0,0.00013562,2]
[361798909,1747813838811,-1265.0,0.00013562,3]
[361798910,1747813838834,-329.775991,0.00013699,2]
[361798911,1747813838845,-235.194206,0.00015438,2]
[361798912,1747813838855,-1152.4897973,0.00015506,2]
[361798913,1747813838865,-448.15910244,0.000159,2]
[361798914,1747813838876,-448.15910223,0.00016245,2]
[361798915,1747813838886,-185.4326167,0.00016338,2]
[361798916,1747813838896,-300.0,0.00016399,2]
[361798917,1747813838905,-300.0,0.00016399,2]
[361798918,1747813838916,-194.0,0.000164,2]
[361798919,1747813838926,-194.0,0.000164,2]
[361798920,1747813838936,-194.65000001,0.000164,2]
[361798921,1747813838947,-500.0,0.00016437,2]
[361798922,1747813838958,-500.0,0.00016437,2]
[361798923,1747813838968,-500.0,0.00016437,2]
[361798924,1747813838977,-500.0,0.00016437,2]
[361798925,1747813838987,-463.86930481,0.00016437,2]
[361798926,1747813839000,-500.0,0.00016437,2]
[361798928,1747813839012,-442.92732043,0.00016437,2]
[361798930,1747813839023,-500.0,0.00016437,2]
[361798932,1747813839032,-500.0,0.00016437,2]
[361798934,1747813839043,-500.0,0.00016437,2]
[361798936,1747813839053,-500.0,0.00016437,2]
[361798938,1747813839063,-406.37585361,0.00016437,2]
[361798940,1747813839074,-464.52329006,0.00016437,2]
[361798942,1747813839085,-273.83592111,0.00016437,2]
[361798944,1747813839094,-500.0,0.00016437,2]
[361798947,1747813839105,-500.0,0.00016437,2]
[361798948,1747813839115,-500.0,0.00016437,2]
[361798951,1747813839125,-500.0,0.00016437,2]